bitfinex-derivatives/quotes_BTCF0:USTF0_20241110
["timestamp","ask_amount","ask_price","bid_price","bid_amount"]
[1731238752357,0.26829049,79943.0,79933.0,0.35369545]
[1731238753154,0.26829049,79939.0,79929.0,0.2806]
[1731238753353,0.3608,79940.0,79929.0,0.1441]
[1731238753354,0.26829049,79935.0,79929.0,0.1441]
[1731238753550,0.26829049,79933.0,79929.0,0.1441]
[1731238754149,0.21824858,79933.0,79929.0,0.1441]
[1731238754551,0.21824858,79933.0,79932.0,0.00111]
[1731238755761,0.3608,79940.0,79932.0,0.00111]
[1731238755954,0.21824858,79939.0,79932.0,0.00111]
[1731238756150,0.21824858,79938.0,79932.0,0.00111]
[1731238757260,0.21824858,79936.0,79932.0,0.00111]
[1731238757449,0.21824858,79934.0,79932.0,0.00111]
[1731238761264,0.3608,79941.0,79932.0,0.00111]
[1731238761265,0.119,79943.0,79932.0,0.00111]
[1731238761462,0.3608,79940.0,79932.0,0.00111]
[1731238762170,0.3608,79950.0,79935.0,0.3608]
[1731238762465,0.3608,79950.0,79936.0,0.1472]
[1731238762662,0.02502446,79947.0,79936.0,0.1472]
[1731238763064,0.3608,79950.0,79936.0,0.1472]
[1731238763065,0.40936588,79950.0,79936.0,0.1472]
[1731238763369,0.52836588,79950.0,79936.0,0.1472]
[1731238763663,0.40936588,79950.0,79936.0,0.1472]
[1731238764668,0.3608,79949.0,79936.0,0.1472]
[1731238764872,0.08635374,79951.0,79936.0,0.1472]
[1731238765056,0.3608,79964.0,79936.0,0.1472]
[1731238765365,0.3608,79950.0,79936.0,0.1472]
[1731238767463,0.3608,79950.0,79897.0,0.04960193]
[1731238767464,0.3608,79933.0,79897.0,0.04960193]
[1731238767665,0.3608,79918.0,79908.0,0.0396375]
[1731238767970,0.3608,79909.0,79908.0,0.0396375]
[1731238768367,0.3608,79909.0,79908.0,0.4150775]
[1731238769365,0.3608,79909.0,79908.0,0.39012796]
[1731238769761,0.3608,79918.0,79908.0,0.39012796]
[1731238769967,0.3608,79918.0,79908.0,0.01468796]
[1731238770367,0.3608,79911.0,79908.0,0.01468796]
[1731238770871,0.3608,79911.0,79909.0,0.37544]
[1731238771467,0.3608,79911.0,79908.0,0.01468796]
[1731238771771,0.3608,79911.0,79909.0,0.37544]
[1731238772270,0.3608,79911.0,79908.0,0.01468796]
[1731238772872,0.00187734,79928.0,79909.0,0.37544]
[1731238772873,0.36267734,79928.0,79909.0,0.37544]
[1731238773071,0.36267734,79928.0,79918.0,0.3608]
[1731238773270,0.3608,79928.0,79919.0,0.2539]
[1731238773474,0.3608,79928.0,79919.0,0.1349]
[1731238773661,0.3608,79920.0,79919.0,0.1349]
[1731238774566,0.3608,79920.0,79919.0,0.13480011]
[1731238777871,0.04904359,79932.0,79919.0,0.51016011]
[1731238777872,0.00010295,79932.0,79919.0,0.51016011]
[1731238778075,0.00010295,79932.0,79924.0,0.3608]
[1731238778275,0.00010295,79932.0,79925.0,0.1411]
[1731238784878,0.00010295,79932.0,79929.0,0.3608]
[1731238785684,0.00010295,79932.0,79930.0,0.37532]
[1731238785872,0.00010295,79932.0,79931.0,0.1188]
[1731238786079,0.00010295,79932.0,79931.0,0.49412]
[1731238787179,0.3608,79946.0,79931.0,0.49412]
[1731238787386,0.3608,79946.0,79931.0,0.1188]
[1731238788179,0.0250271,79944.0,79931.0,0.1188]
[1731238788581,0.00015351,79945.0,79931.0,0.1188]
[1731238789080,0.00015351,79945.0,79939.0,0.3608]
[1731238789287,0.00015351,79945.0,79940.0,0.1463]
[1731238790085,0.00015351,79945.0,79941.0,0.37528]
[1731238790288,0.3608,79953.0,79942.0,0.1188]
[1731238790586,0.00187678,79955.0,79942.0,0.1188]
[1731238791191,0.00187678,79955.0,79947.0,0.3608]
[1731238791487,0.00012182,79954.0,79948.0,0.1444]
[1731238794691,0.00012182,79954.0,79949.0,0.37524]
[1731238795093,0.00012182,79954.0,79950.0,0.37524]
[1731238795297,0.00012182,79954.0,79948.0,0.92011977]
[1731238795598,0.00012182,79954.0,79949.0,0.77434845]
[1731238795787,0.3608,79969.0,79950.0,0.37524]
[1731238795989,0.00061,79972.0,79963.0,0.3608]
[1731238796292,0.00061,79972.0,79964.0,0.1188]
[1731238796989,0.00061,79972.0,79957.0,0.3608]
[1731238796990,0.00061,79972.0,79965.0,0.1188]
[1731238797700,0.00061,79972.0,79957.0,0.41114665]
[1731238797895,0.00061,79972.0,79961.0,0.1188]
[1731238798692,0.00061,79972.0,79961.0,0.11857342]
[1731238801396,0.00061,79972.0,79962.0,0.1451]
[1731238801902,0.00061,79972.0,79962.0,0.26386]
[1731238802495,0.00061,79972.0,79963.0,0.11876]
[1731238803797,0.00061,79972.0,79965.0,0.3608]
[1731238806299,0.00061,79972.0,79966.0,0.39895977]
[1731238806596,0.00061,79972.0,79967.0,0.39895977]
[1731238806803,0.00061,79972.0,79968.0,0.1383]
[1731238809403,0.00061,79972.0,79968.0,0.13466]
[1731238810908,0.00061,79972.0,79969.0,0.1885811]
[1731238811100,0.00061,79972.0,79969.0,0.58754087]
[1731238812013,0.00061,79972.0,79970.0,0.11856]
[1731238812406,0.00061,79972.0,79971.0,0.18760277]
[1731238812606,0.00061,79972.0,79971.0,0.54840277]
[1731238813813,0.3608,79978.0,79971.0,0.54840277]
[1731238814206,0.3608,79978.0,79972.0,0.11856]
[1731238814507,0.3608,79978.0,79973.0,0.11856]
[1731238814709,0.3608,79978.0,79971.0,0.36236]
[1731238814710,0.3608,79978.0,79971.0,0.3608]
[1731238814901,0.3608,79978.0,79974.0,0.11856]
[1731238815104,0.3608,79978.0,79971.0,0.3608]
[1731238815303,0.3608,79978.0,79971.0,0.47936]
[1731238816305,0.3608,79978.0,79969.0,0.39895977]
[1731238816610,0.3608,79970.0,79969.0,0.39895977]
[1731238816806,0.3608,79981.0,79969.0,0.39895977]
[1731238817112,0.3608,79981.0,79965.0,0.0482654]
[1731238817113,0.2926,79980.0,79965.0,0.0482654]
[1731238817406,0.2926,79980.0,79964.0,0.47936]
[1731238817608,0.3608,79974.0,79964.0,0.3608]
[1731238817809,0.3608,79974.0,79964.0,0.47936]
[1731238819015,0.3608,79974.0,79964.0,0.3608]
[1731238820715,0.3608,79974.0,79963.0,0.04993066]
[1731238820910,0.3608,79974.0,79959.0,0.11856]
[1731238821317,0.3608,79967.0,79957.0,0.11856]
[1731238822015,0.3608,79967.0,79954.0,0.3608]
[1731238822218,0.41093314,79975.0,79956.0,0.11856]
[1731238822415,0.3608,79967.0,79958.0,0.18861094]
[1731238822816,0.3608,79975.0,79958.0,0.18861094]
[1731238823016,0.3608,79967.0,79958.0,0.18861094]
[1731238823909,0.3608,79975.0,79958.0,0.18861094]
[1731238824316,0.3608,79968.0,79959.0,0.11856]
[1731238825311,0.3608,79968.0,79958.0,0.18861094]
[1731238825515,0.3608,79968.0,79954.0,0.3608]
[1731238826615,0.3608,79961.0,79954.0,0.3608]
[1731238826822,0.3608,79961.0,79951.0,0.04039658]
[1731238827118,0.3608,79961.0,79949.0,0.14654868]
[1731238827415,0.2858,79960.0,79949.0,0.14654868]
[1731238827922,0.2858,79960.0,79945.0,0.23887704]
[1731238828719,0.2858,79960.0,79945.0,0.27855846]
[1731238828918,0.00010219,79959.0,79945.0,0.27855846]
[1731238829312,0.3608,79948.0,79940.0,0.1396]
[1731238829523,0.3608,79948.0,79930.0,0.120436]
[1731238829824,0.3608,79948.0,79933.0,0.1366]
[1731238830010,0.3608,79948.0,79933.0,0.13574097]
[1731238831711,0.3608,79948.0,79933.0,0.01234092]
[1731238831910,0.31076811,79948.0,79933.0,0.01234092]
[1731238833112,0.31076811,79948.0,79934.0,0.3608]
[1731238833518,0.31076811,79948.0,79934.0,0.47936]
[1731238834218,0.31076811,79948.0,79935.0,0.11856]
[1731238835320,0.00010219,79959.0,79934.0,0.3608]
[1731238835633,0.00010219,79959.0,79935.0,0.51751977]
[1731238835821,0.00010219,79959.0,79935.0,0.81751977]
[1731238836125,0.00010219,79959.0,79941.0,0.3608]
[1731238836320,0.00010219,79959.0,79942.0,0.2788]
[1731238836523,0.00010219,79959.0,79949.0,0.3608]
[1731238836724,0.00010219,79959.0,79950.0,0.26086]
[1731238836923,0.00010219,79959.0,79958.0,0.3608]
[1731238838828,0.3608,79980.0,79958.0,1.59280953]
[1731238839018,0.3608,79980.0,79968.0,0.3608]
[1731238839225,0.3608,79980.0,79969.0,0.25526]
[1731238839427,0.3608,79980.0,79970.0,0.11836]
[1731238839728,4.649e-05,79979.0,79970.0,0.11836]
[1731238840129,6.49e-06,79979.0,79970.0,0.11836]
[1731238841926,6.49e-06,79979.0,79970.0,0.1587072]
[1731238842924,6.49e-06,79979.0,79970.0,0.0403472]
[1731238843126,6.49e-06,79979.0,79971.0,0.11832]
[1731238843523,6.49e-06,79979.0,79974.0,0.3608]
[1731238844634,6.49e-06,79979.0,79971.0,0.11832]
[1731238846335,6.49e-06,79979.0,79973.0,0.3608]
[1731238847424,6.49e-06,79979.0,79974.0,0.18855401]
[1731238847820,6.49e-06,79979.0,79975.0,0.1487]
[1731238848225,6.49e-06,79979.0,79976.0,0.149]
[1731238848630,6.49e-06,79979.0,79977.0,0.37512]
[1731238849129,6.49e-06,79979.0,79978.0,0.37512]
[1731238851832,6.49e-06,79979.0,79977.0,0.39895977]
[1731238852039,6.49e-06,79979.0,79978.0,0.37512]
[1731238852939,6.49e-06,79979.0,79978.0,0.67512]
[1731238853437,6.49e-06,79979.0,79978.0,0.37512]
[1731238854148,6.49e-06,79979.0,79978.0,1.07418594]
[1731238855133,6.49e-06,79979.0,79978.0,1.26129024]
[1731238856331,6.49e-06,79979.0,79978.0,1.44976577]
[1731238857535,0.3608,80003.0,79978.0,1.51842577]
[1731238857730,0.3608,80003.0,79993.0,0.3608]
[1731238857927,0.3608,80003.0,79994.0,0.41538]
[1731238858140,0.3608,80003.0,79994.0,0.74857059]
[1731238858337,0.3608,80003.0,79995.0,2.46230416]
[1731238858530,0.3608,80013.0,79995.0,2.46230416]
[1731238858731,0.3608,80013.0,80002.0,0.3608]
[1731238858939,0.3608,80013.0,80003.0,0.39895977]
[1731238859141,0.3608,80013.0,80003.0,0.77427212]
[1731238859338,0.3608,80013.0,80004.0,0.11828]
[1731238859641,0.3608,80013.0,80005.0,0.18707926]
[1731238862234,0.3608,80013.0,80006.0,0.11828]
[1731238862939,0.3608,80013.0,80004.0,0.0396159]
[1731238863141,0.3608,80013.0,80007.0,0.18735535]
[1731238863338,0.3608,80013.0,80005.0,1.80563535]
[1731238863641,0.3608,80013.0,80008.0,0.18735535]
[1731238863841,0.3608,80013.0,80009.0,0.11828]
[1731238864837,0.3608,80013.0,80003.0,0.04044318]
[1731238865032,0.3608,80013.0,80004.0,0.11828]
[1731238865247,0.3608,80013.0,80005.0,0.11828]
[1731238866145,0.3608,80006.0,80005.0,0.11828]
[1731238866336,0.3608,80014.0,80005.0,0.11828]
[1731238867340,0.3608,80014.0,80000.0,0.44054387]
[1731238867548,0.1478,80013.0,80006.0,0.11804]
[1731238867843,0.3608,80007.0,80006.0,0.11804]
[1731238870540,0.7216,80007.0,80005.0,0.11804]
[1731238870741,0.7216,80007.0,80002.0,0.11804]
[1731238870952,0.1546,80006.0,79995.0,0.12199467]
[1731238871146,0.4377,80006.0,79995.0,0.12199467]
[1731238871649,0.3608,80000.0,79995.0,0.12199467]
[1731238872649,0.3608,80000.0,79990.0,0.11804]
[1731238874243,0.3608,80000.0,79991.0,0.18781052]
[1731238875651,0.3608,80007.0,79995.0,0.3608]
[1731238875945,0.3608,80007.0,79996.0,0.33353183]
[1731238876148,0.3608,80007.0,79997.0,0.144]
[1731238876337,0.3608,80007.0,79997.0,0.54295977]
[1731238876744,0.3608,80007.0,79997.0,0.144]
[1731238876948,0.3608,80007.0,79997.0,1.644]
[1731238877650,0.3608,80007.0,79997.0,0.144]
[1731238878238,0.3608,80007.0,79993.0,0.36232]
[1731238878444,0.3608,80007.0,79978.0,0.05011992]
[1731238878445,0.3608,79995.0,79991.0,0.11804]
[1731238878639,0.1526,79994.0,79991.0,0.11804]
[1731238879347,0.3608,79995.0,79991.0,0.11804]
[1731238879544,0.3608,79995.0,79984.0,0.42548599]
[1731238879947,0.3608,79995.0,79986.0,0.11804]
[1731238880141,0.3608,79995.0,79985.0,0.04173281]
[1731238880344,0.3608,79995.0,79986.0,0.11804]
[1731238882345,0.3608,79995.0,79985.0,0.04173281]
[1731238882545,0.3608,79995.0,79985.0,0.00187461]
[1731238882546,0.3608,79986.0,79985.0,0.00187461]
[1731238883249,0.3608,79986.0,79972.0,0.08360735]
[1731238883453,0.3608,79979.0,79969.0,0.02500713]
[1731238883647,0.3608,79979.0,79970.0,0.11804]
[1731238883952,0.3608,79979.0,79970.0,0.30562371]
[1731238884349,0.00010617,79978.0,79970.0,0.30562371]
[1731238885049,0.00010617,79978.0,79970.0,0.30494142]
[1731238885259,0.00010617,79978.0,79976.0,0.3608]
[1731238886955,0.00010617,79978.0,79977.0,0.3002]
[1731238888255,0.00010617,79978.0,79977.0,0.69915977]
[1731238888655,0.00010617,79978.0,79977.0,0.51703977]
[1731238888955,0.00010617,79978.0,79977.0,0.55660321]
[1731238890062,0.00010617,79978.0,79977.0,0.93172321]
[1731238890457,0.3608,79993.0,79977.0,1.11870374]
[1731238890656,0.3608,79993.0,79978.0,1.89895977]
[1731238890853,0.3608,80000.0,79978.0,1.89895977]
[1731238891053,0.3608,80000.0,79983.0,0.3608]
[1731238891250,0.3608,80000.0,79984.0,0.148]
[1731238891456,0.3608,80000.0,79984.0,0.33545952]
[1731238891963,0.3608,80000.0,79984.0,0.37256612]
[1731238892159,0.3608,80000.0,79984.0,0.33545952]
[1731238892959,0.3608,80000.0,79985.0,0.11808]
[1731238893761,0.3608,80000.0,79986.0,0.11808]
[1731238897573,0.3608,79992.0,79984.0,0.148]
[1731238897767,0.3608,79992.0,79984.0,0.11788]
[1731238897768,0.2992,79991.0,79984.0,0.11788]
[1731238897969,0.4455,79991.0,79984.0,0.11788]
[1731238898865,0.4455,79991.0,79979.0,0.04026702]
[1731238899067,0.4455,79991.0,79980.0,0.11788]
[1731238900072,0.4455,79991.0,79978.0,0.3608]
[1731238900276,0.3608,79982.0,79974.0,0.03869505]
[1731238900578,0.3608,79982.0,79967.0,0.3608]
[1731238900786,0.3608,79974.0,79967.0,0.3608]
[1731238901076,0.3608,79974.0,79970.0,0.11788]
[1731238901270,0.3608,79989.0,79971.0,0.62278]
[1731238901470,0.3608,79989.0,79972.0,0.11788]
[1731238901471,0.03105332,79988.0,79972.0,0.11788]
[1731238901676,0.1497,79988.0,79972.0,0.11788]
[1731238901872,0.3608,79989.0,79972.0,0.11788]
[1731238902076,0.3608,79989.0,79975.0,0.00010446]
[1731238902271,0.00011554,79988.0,79975.0,0.00010446]
[1731238904474,0.00011554,79988.0,79975.0,0.11798446]
[1731238905087,0.00011554,79988.0,79976.0,0.11788]
[1731238905377,0.3608,79982.0,79975.0,0.00010446]
[1731238905577,0.15,79981.0,79975.0,0.00010446]
[1731238906977,0.3608,79982.0,79975.0,0.00010446]
[1731238912581,0.3608,79980.0,79975.0,0.00010446]
[1731238912784,0.2944,79979.0,79956.0,0.0371066]
[1731238913090,0.2944,79979.0,79955.0,0.3608]
[1731238913091,0.3608,79962.0,79955.0,0.35989082]
[1731238913286,0.2944,79961.0,79950.0,1.00312]
[1731238913488,0.2944,79961.0,79950.0,1.0]
[1731238913489,0.3608,79954.0,79950.0,1.0]
[1731238914189,0.3608,79954.0,79950.0,0.87731913]
[1731238915092,0.00015567,79953.0,79950.0,0.87731913]
[1731238915482,0.37524,79952.0,79950.0,0.87731913]
[1731238915676,0.00015567,79953.0,79950.0,0.87731913]
[1731238915881,0.1563,79952.0,79950.0,0.87731913]
[1731238916286,0.1563,79952.0,79950.0,0.75226676]
[1731238917491,0.37524,79951.0,79950.0,0.50776676]
[1731238918689,0.1563,79952.0,79950.0,0.50776676]
[1731238918994,0.37524,79951.0,79950.0,0.50776676]
[1731238919489,0.37524,79951.0,79950.0,0.50747568]
[1731238921088,0.00015567,79953.0,79950.0,0.50747568]
[1731238921382,0.00015567,79953.0,79950.0,0.50737089]
[1731238924486,0.3608,79951.0,79933.0,0.3608]
[1731238924686,0.3608,79951.0,79928.0,0.1489]
[1731238924995,0.3608,79936.0,79928.0,0.1489]
[1731238925688,0.3608,79936.0,79928.0,0.26682]
[1731238926086,0.3608,79936.0,79929.0,0.11792]
[1731238926484,0.3608,79936.0,79928.0,0.1489]
[1731238926685,0.3608,79936.0,79928.0,0.26682]
[1731238927999,0.3608,79936.0,79928.0,0.1489]
[1731238928593,0.3608,79936.0,79922.0,0.00011208]
[1731238928789,0.3608,79936.0,79924.0,0.156]
[1731238933503,0.3608,79929.0,79924.0,0.156]
[1731238936996,0.3608,79929.0,79925.0,0.11776]
[1731238938595,0.3608,79929.0,79924.0,0.156]
[1731238939703,0.36076,79929.0,79924.0,0.156]
[1731238940900,0.3608,79936.0,79925.0,0.3608]
[1731238941804,0.00187752,79960.0,79935.0,0.3608]
[1731238942000,0.00187752,79960.0,79948.0,0.3608]
[1731238942202,0.00187752,79960.0,79949.0,0.26666]
[1731238942911,0.00187752,79960.0,79950.0,0.11776]
[1731238943100,0.00187752,79960.0,79951.0,0.11776]
[1731238943305,0.00187752,79960.0,79950.0,0.11776]
[1731238943910,9.251e-05,79959.0,79950.0,0.11776]
[1731238944110,9.251e-05,79959.0,79950.0,0.27096]
[1731238944316,9.251e-05,79959.0,79950.0,0.1532]
[1731238946119,0.3608,79956.0,79949.0,0.1489]
[1731238947822,0.3608,79950.0,79941.0,0.00152]
[1731238948012,0.3608,79950.0,79933.0,0.1539]
[1731238948213,0.3608,79942.0,79933.0,0.1539]
[1731238949414,0.3608,79942.0,79925.0,0.1585]
[1731238950321,0.4106304,79942.0,79925.0,0.1585]
[1731238950820,0.7106304,79942.0,79925.0,0.1585]
[1731238951022,0.4106304,79942.0,79925.0,0.1585]
[1731238953213,0.3608,79942.0,79925.0,0.1585]
[1731238954317,0.3608,79942.0,79925.0,0.208281]
[1731238954816,0.3608,79942.0,79925.0,0.326041]
[1731238958114,0.3608,79934.0,79925.0,0.1585]
[1731238958727,0.156,79941.0,79925.0,0.1585]
[1731238959027,0.456,79941.0,79925.0,0.1585]
[1731238959419,0.456,79941.0,79922.0,0.15051208]
[1731238961030,0.156,79941.0,79922.0,0.15051208]
[1731238962431,0.3608,79942.0,79922.0,0.15051208]
[1731238962933,0.3608,79942.0,79922.0,0.51131208]
[1731238963323,0.3608,79942.0,79929.0,0.3608]
[1731238973239,0.6608,79942.0,79929.0,0.3608]
[1731238973430,0.1176,79941.0,79929.0,0.3608]
[1731238973940,0.4176,79941.0,79929.0,0.3608]
[1731238974437,0.03062077,79940.0,79929.0,0.3608]
[1731238974633,0.03062077,79939.0,79929.0,0.3608]
[1731238974833,0.03062077,79938.0,79929.0,0.3608]
[1731238975035,0.03062077,79937.0,79929.0,0.3608]
[1731238975237,0.03062077,79936.0,79929.0,0.3608]
[1731238975435,0.03062077,79935.0,79929.0,0.3608]
[1731238975738,0.4176,79941.0,79929.0,0.3608]
[1731238975938,0.03062081,79940.0,79929.0,0.3608]
[1731238976137,0.4176,79941.0,79929.0,0.3608]
[1731238976138,0.03062081,79939.0,79929.0,0.3608]
[1731238976341,0.03062081,79938.0,79929.0,0.3608]
[1731238976545,0.03062081,79937.0,79929.0,0.36030835]
[1731238976839,0.03062081,79936.0,79929.0,0.36030835]
[1731238977042,0.03062081,79935.0,79929.0,0.36030835]
[1731238977340,0.03062081,79934.0,79929.0,0.36030835]
[1731238977640,0.03062081,79933.0,79929.0,0.36030835]
[1731238977849,0.00011739,79932.0,79922.0,0.51287208]
[1731238978238,0.00011739,79932.0,79922.0,0.51131208]
[1731238979633,0.03062277,79931.0,79922.0,0.51131208]
[1731238979842,0.03062277,79930.0,79922.0,0.51131208]
[1731238980137,0.04842139,79932.0,79922.0,0.51131208]
[1731238980342,0.03062264,79931.0,79922.0,0.51131208]
[1731238980541,0.03062264,79930.0,79922.0,0.51131208]
[1731238980742,0.03062264,79929.0,79922.0,0.51131208]
[1731238980939,0.00011739,79932.0,79922.0,0.51131208]
[1731238981139,0.03062366,79931.0,79922.0,0.51131208]
[1731238981336,0.00011739,79932.0,79922.0,0.51131208]
[1731238981337,0.06124732,79930.0,79922.0,0.51131208]
[1731238981539,0.00011739,79932.0,79922.0,0.51131208]
[1731238981738,0.03062366,79931.0,79922.0,0.51131208]
[1731238981933,0.03062366,79930.0,79922.0,0.51131208]
[1731238982138,0.00011739,79932.0,79922.0,0.51131208]
[1731238983553,0.3608,79923.0,79922.0,0.15051208]
[1731238983846,0.3608,79923.0,79922.0,0.14430567]
[1731238984052,0.36708489,79923.0,79922.0,0.14430567]
[1731238985653,0.36708489,79923.0,79922.0,0.02541157]
[1731238986351,0.41605594,79923.0,79922.0,0.02541157]
[1731238987647,0.41605594,79923.0,79917.0,0.1588]
[1731238987648,0.41605594,79923.0,79917.0,0.05913418]
[1731238987946,0.40977105,79923.0,79917.0,0.05913418]
[1731238988448,0.4158879,79923.0,79911.0,0.3608]
[1731238989651,0.4158879,79923.0,79906.0,0.1543]
[1731238990752,0.44091592,79923.0,79906.0,0.1543]
[1731238990952,0.44091592,79923.0,79911.0,0.05005568]
[1731238991157,0.40977105,79923.0,79911.0,0.05005568]
[1731238991454,0.40977105,79923.0,79911.0,0.41085568]
[1731238991651,0.40977105,79923.0,79911.0,0.41079568]
[1731238992356,0.3608,79923.0,79911.0,0.41079568]
[1731238992558,0.00011739,79932.0,79922.0,0.3608]
[1731238992946,7.739e-05,79932.0,79922.0,0.3608]
[1731238994852,7.739e-05,79932.0,79931.0,0.3608]
[1731238995359,7.739e-05,79932.0,79931.0,0.73612]
[1731238996457,7.739e-05,79932.0,79931.0,0.85352]
[1731238996658,7.739e-05,79932.0,79931.0,0.73612]
[1731238996957,7.739e-05,79932.0,79931.0,0.85352]
[1731238997955,7.739e-05,79932.0,79931.0,0.90356316]
[1731238998353,7.739e-05,79932.0,79931.0,0.78616316]
[1731238998657,7.739e-05,79932.0,79931.0,0.52824316]
[1731238999351,7.739e-05,79932.0,79931.0,0.90356316]
[1731238999555,0.0503038,79951.0,79931.0,0.90356316]
[1731238999861,0.3608,79952.0,79940.0,0.3608]
[1731239000054,0.3608,79952.0,79941.0,0.1551]
[1731239000562,0.00013163,79951.0,79942.0,0.307]
[1731239003565,0.3608,79944.0,79931.0,0.41084316]
[1731239003868,0.1564,79943.0,79931.0,0.41084316]
[1731239004555,0.00013163,79951.0,79931.0,0.41084316]
[1731239004762,0.00013163,79951.0,79939.0,0.3608]
[1731239004959,0.00013163,79951.0,79940.0,0.4648]
[1731239007260,0.00013163,79951.0,79941.0,0.3608]
[1731239012056,0.0306163,79950.0,79941.0,0.3608]
[1731239012261,0.00013163,79951.0,79941.0,0.3608]
[1731239014170,0.00013163,79951.0,79932.0,0.3155]
[1731239014171,0.3608,79944.0,79932.0,0.3155]
[1731239014372,0.155,79943.0,79932.0,0.3155]
[1731239016471,0.00135846,79938.0,79932.0,0.3155]
[1731239017065,0.00175531,79935.0,79932.0,0.3155]
[1731239017473,0.00175531,79935.0,79933.0,0.1493]
[1731239018169,0.00175531,79934.0,79932.0,0.3155]
[1731239018963,0.00175531,79934.0,79931.0,0.41084316]
[1731239019163,0.1172,79939.0,79931.0,0.41084316]
[1731239019164,0.15925531,79933.0,79931.0,0.41084316]
[1731239020277,0.3608,79945.0,79931.0,0.41084316]
[1731239020278,0.00175531,79932.0,79931.0,0.41084316]
[1731239026381,0.00175531,79932.0,79931.0,0.05004316]
[1731239037686,0.05151853,79932.0,79931.0,0.05004316]
[1731239037990,0.05151853,79932.0,79928.0,0.29098486]
[1731239038490,0.00175531,79930.0,79928.0,0.29098486]
[1731239039286,0.00175531,79929.0,79928.0,0.29098486]
[1731239040192,0.00175531,79929.0,79928.0,0.28552275]
[1731239044987,0.03237588,79929.0,79928.0,0.28552275]
[1731239045188,0.00175531,79929.0,79928.0,0.28552275]
[1731239045786,0.00175531,79929.0,79921.0,0.1571]
[1731239046291,0.40980452,79934.0,79921.0,0.1571]
[1731239046292,0.00175531,79925.0,79921.0,0.1571]
[1731239047389,0.00175531,79923.0,79921.0,0.1571]
[1731239048391,0.00175531,79922.0,79921.0,0.1571]
[1731239048589,0.00175531,79922.0,79919.0,0.51076]
[1731239048789,0.00175531,79922.0,79911.0,0.04999568]
[1731239048995,0.15601207,79921.0,79911.0,0.04999568]
[1731239049495,0.00175531,79916.0,79911.0,0.04999568]
[1731239050585,0.00175531,79914.0,79911.0,0.04999568]
[1731239051592,0.00175531,79913.0,79911.0,0.04999568]
[1731239052592,0.00175531,79912.0,79911.0,0.04999568]
[1731239053602,0.00175531,79912.0,79911.0,0.10005136]
[1731239064113,0.00175531,79912.0,79911.0,0.09825328]
[1731239065101,0.05058193,79912.0,79911.0,0.09825328]
[1731239065507,0.05058193,79912.0,79911.0,0.05997413]
[1731239066104,0.41138193,79912.0,79911.0,0.05997413]
[1731239066905,0.00175531,79912.0,79911.0,0.05997413]
[1731239067110,0.00175531,79912.0,79911.0,0.05859959]
[1731239070608,0.05077465,79912.0,79911.0,0.05859959]
[1731239070909,0.00175531,79912.0,79911.0,0.05859959]
[1731239071107,0.36255531,79912.0,79911.0,0.05859959]
[1731239071408,0.00175531,79912.0,79911.0,0.05859959]
[1731239072415,0.050568,79912.0,79911.0,0.05859959]
[1731239072708,0.00175531,79912.0,79911.0,0.05859959]
[1731239086019,0.3608,79920.0,79911.0,0.05859959]
[1731239086020,0.3608,79928.0,79911.0,0.43399959]
[1731239086218,0.3608,79928.0,79916.0,0.3608]
[1731239086527,0.3608,79928.0,79917.0,0.1645]
[1731239087416,0.3608,79928.0,79918.0,0.1575]
[1731239089320,0.3608,79928.0,79919.0,0.1604]
[1731239089915,0.3608,79938.0,79920.0,0.37536]
[1731239090117,0.0492676,79939.0,79920.0,0.37536]
[1731239090317,0.0492676,79939.0,79927.0,0.3608]
[1731239090617,0.3608,79945.0,79928.0,0.11676]
[1731239090809,0.04973982,79943.0,79928.0,0.11676]
[1731239091015,0.00010361,79936.0,79928.0,0.11676]
[1731239094024,0.00010361,79936.0,79927.0,0.3608]
[1731239094224,0.3608,79935.0,79927.0,0.3608]
[1731239094620,0.00010361,79936.0,79927.0,0.3608]
[1731239094824,0.3608,79935.0,79927.0,0.3608]
[1731239095722,0.00010361,79936.0,79927.0,0.3608]
[1731239096024,0.3608,79945.0,79934.0,0.3608]
[1731239096221,0.3608,79945.0,79935.0,0.3146]
[1731239097028,0.3608,79945.0,79936.0,0.11672]
[1731239099128,0.1642,79957.0,79937.0,0.1554]
[1731239099439,0.3608,79952.0,79937.0,0.1554]
[1731239099928,0.3608,79960.0,79937.0,0.1554]
[1731239100123,0.3608,79960.0,79950.0,0.3608]
[1731239100436,0.3608,79960.0,79951.0,0.26752]
[1731239100824,0.3608,79960.0,79952.0,0.3162]
[1731239101225,0.3608,79969.0,79952.0,0.3162]
[1731239101532,0.3608,79969.0,79953.0,0.11672]
[1731239102220,0.3608,79969.0,79952.0,0.3162]
[1731239102523,0.3608,79969.0,79953.0,0.3608]
[1731239102919,0.3608,79969.0,79954.0,0.11672]
[1731239103126,0.3168,79968.0,79954.0,0.11672]
[1731239103529,0.3608,79957.0,79952.0,0.1521]
[1731239103718,0.3608,79957.0,79942.0,0.1588]
[1731239103922,0.3608,79948.0,79941.0,0.36232]
[1731239104125,0.1612,79947.0,79941.0,0.3608]
[1731239105220,0.1612,79947.0,79936.0,0.3608]
[1731239105520,0.1612,79947.0,79928.0,0.47402]
[1731239105722,0.1612,79947.0,79928.0,0.3151]
[1731239106135,0.3608,79941.0,79928.0,0.3151]
[1731239108033,0.3608,79934.0,79927.0,0.05004566]
[1731239108430,0.1605,79933.0,79927.0,0.05004566]
[1731239109027,0.37532,79932.0,79927.0,0.05004566]
[1731239109228,0.1605,79933.0,79913.0,0.3608]
[1731239109229,0.37532,79931.0,79913.0,0.3608]
[1731239109533,0.37532,79931.0,79904.0,0.3186]
[1731239109534,0.3608,79925.0,79904.0,0.3186]
[1731239109724,0.1581,79924.0,79904.0,0.3186]
[1731239110637,0.3608,79918.0,79904.0,0.3186]
[1731239112032,0.1552,79917.0,79904.0,0.3186]
[1731239112947,0.3608,79918.0,79904.0,0.3186]
[1731239115137,0.3608,79922.0,79904.0,0.3186]
[1731239115334,0.3608,79922.0,79904.0,0.43508]
[1731239115527,0.3608,79922.0,79904.0,0.4366]
[1731239117141,0.3608,79922.0,79914.0,0.3608]
[1731239117734,0.3608,79934.0,79914.0,0.3608]